[Event "Asian Zonal 3.3 2019"]
[Site "Ulaanbaatar"]
[Date "2019.04.10"]
[Round "4.20"]
[White "Danzanjunai, Ganbat"]
[Black "Amilal, Munkhdalai"]
[Result "0-1"]
[ECO "A00"]
[WhiteElo "1608"]
[BlackElo "2042"]
[Annotator "NA RC"]
[PlyCount "104"]
[EventDate "2019.04.07"]
[EventType "swiss"]
[EventRounds "9"]
[EventCountry "MGL"]
[SourceTitle "playchess.com"]
[Source "ChessBase"]
[SourceQuality "1"]
[TimeControl "40/5400+30:1800+30"]

1. d4 Nf6 2. Nf3 d5 3. Bf4 c5 4. e3 Nc6 5. c3 Qb6 6. Qb3 c4 7. Qxb6 axb6 8. Nbd2 b5 9. Be2 h6 10. O-O Bf5 11. a3 e6 12. Ne5 Be7 13. f3 O-O 14. Rfe1 Rfe8 15. Bf1 Nxe5 16. Bxe5 Nd7 17. e4 Bg6 18. exd5 exd5 19. Bc7 Rac8 20. Bf4 Nb6 21. Re3 Bf8 22. Rxe8 Rxe8 23. b3 Ra8 24. Bc7 Nd7 25. bxc4 bxc4 26. a4 b5 27. a5 b4 28. cxb4 Bxb4 29. Nxc4 dxc4 30. Bxc4 Rc8 31. Ra4 Bc3 32. Bg3 Bc2 33. Ba6 Bxa4 34. Bxc8 Bxa5 35. Bf2 Bb6 36. g3 Kf8 37. Bb7 Ke7 38. Kg2 Kd6 39. g4 Bc6 40. Ba6 Kd5 41. Bd3 Nf6 42. h4 Bxd4 43. g5 Bxf2 44. Kxf2 hxg5 45. hxg5 Nh5 46. Bc2 Ke5 47. Ke3 Nf4 48. Bb1 Bd7 49. Bc2 Bf5 50. Bb3 Bg6 51. Kf2 Kf5 52. Kg3 Kxg5 0-1

[Event "Asian Zonal 3.3 2019"]
[Site "Ulaanbaatar"]
[Date "2019.04.10"]
[Round "4.21"]
[White "Gerelt-Od, Boldbaatar"]
[Black "Chinguun, Bayaraa"]
[Result "0-1"]
[ECO "A00"]
[WhiteElo "1484"]
[BlackElo "2033"]
[Annotator "NA RC"]
[PlyCount "46"]
[EventDate "2019.04.07"]
[EventType "swiss"]
[EventRounds "9"]
[EventCountry "MGL"]
[SourceTitle "playchess.com"]
[Source "ChessBase"]
[SourceQuality "1"]
[TimeControl "40/5400+30:1800+30"]

1. e4 c5 2. Nf3 d6 3. d4 cxd4 4. Nxd4 Nf6 5. Nc3 a6 6. Nb3 e5 7. Bg5 Be6 8. Qd3 Nbd7 9. O-O-O Qc7 10. f3 Be7 11. h4 b5 12. g4 b4 13. Nd5 Bxd5 14. exd5 O-O 15. Bxf6 Nxf6 16. g5 Nh5 17. Bh3 Nf4 18. Qe4 a5 19. Rdg1 a4 20. Nd2 Qc5 21. Kb1 Nxh3 22. Qg4 Nxg1 23. Rxg1 Rfc8 0-1

[Event "Asian Zonal 3.3 2019"]
[Site "Ulaanbaatar"]
[Date "2019.04.10"]
[Round "4.23"]
[White "Bulgankhan, Ganzorig"]
[Black "Amgalantengis, Enkh-Amgalan"]
[Result "1-0"]
[ECO "A00"]
[WhiteElo "1936"]
[BlackElo "1832"]
[Annotator "NA RC"]
[PlyCount "101"]
[EventDate "2019.04.07"]
[EventType "swiss"]
[EventRounds "9"]
[EventCountry "MGL"]
[SourceTitle "playchess.com"]
[Source "ChessBase"]
[SourceQuality "1"]
[TimeControl "40/5400+30:1800+30"]

1. e4 c6 2. Nc3 d5 3. Nf3 Bg4 4. h3 Bxf3 5. Qxf3 e6 6. d3 Nf6 7. Bd2 Nbd7 8. g4 Nb6 9. g5 Nfd7 10. h4 d4 11. Ne2 e5 12. h5 Qc7 13. Bh3 Be7 14. g6 hxg6 15. hxg6 f6 16. Bxd7+ Kxd7 17. Qg4+ Kd6 18. O-O-O Qd7 19. Qg2 Qe6 20. Kb1 c5 21. Ng3 Kc6 22. Nf5 Rhg8 23. Rh7 Bf8 24. Qh3 Re8 25. b3 Nc8 26. Rh8 Rxh8 27. Qxh8 Qd7 28. Rh1 Nd6 29. Nxd6 Bxd6 30. Qh3 Qxh3 31. Rxh3 b5 32. Kc1 b4 33. Rh7 Rg8 34. Kd1 Kd7 35. Ke2 Ke6 36. Rh5 Rf8 37. Rh7 Rg8 38. Kf3 a6 39. Kg4 a5 40. f4 Be7 41. Be1 Bd8 42. Bg3 Bc7 43. Rh5 Bd6 44. fxe5 fxe5 45. Bh4 Rf8 46. Rf5 Rxf5 47. exf5+ Kd5 48. f6 Bf8 49. Kf5 Kd6 50. fxg7 Bxg7 51. Bf6 1-0

[Event "Asian Zonal 3.3 2019"]
[Site "Ulaanbaatar"]
[Date "2019.04.11"]
[Round "5.19"]
[White "Altanbayar, Tserenpeljee"]
[Black "Khuslen, Altan-Ochir"]
[Result "1/2-1/2"]
[ECO "A00"]
[WhiteElo "2060"]
[BlackElo "1927"]
[Annotator "NA RC"]
[PlyCount "107"]
[EventDate "2019.04.07"]
[EventType "swiss"]
[EventRounds "9"]
[EventCountry "MGL"]
[SourceTitle "playchess.com"]
[Source "ChessBase"]
[SourceQuality "1"]
[TimeControl "40/5400+30:1800+30"]

1. e4 e5 2. Nf3 Nc6 3. Bb5 a6 4. Ba4 Nf6 5. O-O Be7 6. Re1 b5 7. Bb3 d6 8. c3 O-O 9. h3 Bb7 10. a4 h6 11. d3 Na5 12. Bc2 c5 13. Nbd2 Re8 14. Nf1 Bf8 15. Ng3 d5 16. Qe2 Qd7 17. Bd2 c4 18. axb5 axb5 19. Rad1 dxe4 20. dxe4 Qe6 21. Nf5 Nb3 22. g4 Nxd2 23. Qxd2 Rad8 24. Qxd8 Rxd8 25. Rxd8 Bc6 26. Red1 Ne8 27. Kh2 g6 28. Ne3 Be7 29. R8d2 Nf6 30. Nd5 Bc5 31. g5 Bxd5 32. exd5 Qd6 33. gxf6 e4+ 34. Kg2 exf3+ 35. Kxf3 Qxf6+ 36. Kg2 Qg5+ 37. Kf1 Qh5 38. Be4 Bd6 39. Bg2 f5 40. Re1 f4 41. Re6 f3 42. Bxf3 Qxf3 43. Rxd6 Qxh3+ 44. Ke2 Qh5+ 45. Kf1 Qh1+ 46. Ke2 Qh5+ 47. Kf1 Qh3+ 48. Ke2 Qg4+ 49. Ke1 Qe4+ 50. Kd1 Qb1+ 51. Ke2 Qe4+ 52. Kd1 Qb1+ 53. Ke2 Qe4+ 54. Kd1 1/2-1/2

[Event "Asian Zonal 3.3 2019"]
[Site "Ulaanbaatar"]
[Date "2019.04.11"]
[Round "5.20"]
[White "Surya, Wahyudi"]
[Black "Tenuunbold, Battulga"]
[Result "1-0"]
[ECO "A00"]
[WhiteElo "2197"]
[BlackElo "1692"]
[Annotator "NA RC"]
[PlyCount "81"]
[EventDate "2019.04.07"]
[EventType "swiss"]
[EventRounds "9"]
[EventCountry "MGL"]
[SourceTitle "playchess.com"]
[Source "ChessBase"]
[SourceQuality "1"]
[TimeControl "40/5400+30:1800+30"]

1. c4 e5 2. Nc3 Nf6 3. Nf3 Nc6 4. d3 Bb4 5. Bd2 O-O 6. e3 d5 7. cxd5 Nxd5 8. Be2 Nxc3 9. bxc3 Bd6 10. O-O Be6 11. e4 h6 12. d4 Bg4 13. Be3 Qf6 14. Rb1 Rfe8 15. h3 Bh5 16. d5 Nd8 17. Qa4 Qe7 18. c4 b6 19. c5 bxc5 20. g4 Bg6 21. Rfc1 Rf8 22. Nd2 f6 23. Nb3 Nf7 24. h4 Bh7 25. Nxc5 f5 26. exf5 Qxh4 27. Kg2 Bxc5 28. Rxc5 Nd6 29. Rh1 Qe7 30. Qc6 Rac8 31. Ba6 Rcd8 32. Qxc7 Rd7 33. Qc6 Nf7 34. Qe6 Qd8 35. Rc8 Rd6 36. Rxd8 Rfxd8 37. Bc4 g6 38. Bc5 Rxe6 39. dxe6 gxf5 40. exf7+ Kg7 41. f8=Q+ 1-0

[Event "Asian Zonal 3.3 2019"]
[Site "Ulaanbaatar"]
[Date "2019.04.11"]
[Round "5.21"]
[White "Chuluun, Gonchigdorj"]
[Black "Danzanjunai, Ganbat"]
[Result "1/2-1/2"]
[ECO "A00"]
[WhiteElo "1982"]
[BlackElo "1608"]
[Annotator "NA RC"]
[PlyCount "118"]
[EventDate "2019.04.07"]
[EventType "swiss"]
[EventRounds "9"]
[EventCountry "MGL"]
[SourceTitle "playchess.com"]
[Source "ChessBase"]
[SourceQuality "1"]
[TimeControl "40/5400+30:1800+30"]

1. e4 e5 2. Nf3 Nc6 3. d4 exd4 4. Nxd4 Nf6 5. Nc3 Bb4 6. Nxc6 bxc6 7. Bd3 d5 8. exd5 cxd5 9. O-O O-O 10. Bg5 Bxc3 11. bxc3 h6 12. Bh4 Qd6 13. Qf3 Bg4 14. Qg3 Qxg3 15. Bxg3 c6 16. Rfe1 Rfe8 17. f3 Bh5 18. Rab1 Rxe1+ 19. Bxe1 Bg6 20. Rb7 Ne8 21. Bg3 Bxd3 22. cxd3 g5 23. a4 h5 24. h3 Kg7 25. a5 h4 26. Be5+ Kg6 27. a6 c5 28. c4 f6 29. Bb8 dxc4 30. dxc4 Kh6 31. Kf2 Kg6 32. Ke3 Kf5 33. Kd3 Ke6 34. Bxa7 Nd6 35. Kc3 Nc8 36. Bxc5 Rxa6 37. Rb8 Rc6 38. Kb4 Kf5 39. Be3 Rc7 40. Bb6 Nxb6 41. Rxb6 Rf7 42. Kc5 Ke5 43. Kc6 f5 44. c5 g4 45. fxg4 fxg4 46. hxg4 Rf2 47. Kd7 Rxg2 48. c6 Rd2+ 49. Kc8 h3 50. c7 h2 51. Rh6 Kf4 52. Kb7 Rb2+ 53. Kc6 Rc2+ 54. Kd6 Rd2+ 55. Ke6 Rc2 56. Kd6 Rd2+ 57. Ke6 Rc2 58. Kd7 Rd2+ 59. Kc8 Kxg4 1/2-1/2

[Event "Asian Zonal 3.3 2019"]
[Site "Ulaanbaatar"]
[Date "2019.04.11"]
[Round "5.22"]
[White "Erkhembayar, Tserentsoodol"]
[Black "Batbold, Nyamsuren"]
[Result "0-1"]
[ECO "A00"]
[WhiteElo "1757"]
[BlackElo "1809"]
[Annotator "NA RC"]
[PlyCount "134"]
[EventDate "2019.04.07"]
[EventType "swiss"]
[EventRounds "9"]
[EventCountry "MGL"]
[SourceTitle "playchess.com"]
[Source "ChessBase"]
[SourceQuality "1"]
[TimeControl "40/5400+30:1800+30"]

1. c4 Nf6 2. d4 d5 3. Nc3 c6 4. cxd5 cxd5 5. g3 Nc6 6. Bg2 e6 7. Nf3 Bb4 8. O-O O-O 9. a3 Bxc3 10. bxc3 Ne4 11. Bb2 Bd7 12. a4 Na5 13. Ba3 Re8 14. Bb4 Nc4 15. a5 Rc8 16. Ne5 Nxc3 17. Bxc3 Nxe5 18. Qb3 Qc7 19. Bb4 Nc6 20. Bc3 b6 21. a6 Nb8 22. Rfc1 Qc4 23. Qb2 Qb5 24. Qd2 Rc4 25. e4 Rcc8 26. Bf1 Qc6 27. Bb4 Qa8 28. e5 Nc6 29. Bc3 Rc7 30. Bb4 Rec8 31. Bc3 Ne7 32. Bb2 Rxc1 33. Rxc1 Rxc1 34. Bxc1 Nc6 35. Ba3 h6 36. g4 Qc8 37. Bd6 Nb8 38. Qa2 Nc6 39. Qa4 Nxe5 40. Qb3 Nc4 41. Qg3 Nd2 42. Bd3 Ne4 43. Bxe4 dxe4 44. Bb8 Qxa6 45. Qc7 Qa1+ 46. Kg2 Qxd4 47. Bxa7 e3 48. fxe3 Qxg4+ 49. Kf2 Qh4+ 50. Kg2 Qe4+ 51. Kf2 Bc6 52. Bxb6 Qc2+ 53. Ke1 Qc1+ 54. Ke2 Bb5+ 55. Kf3 Qh1+ 56. Kg3 Bc6 57. Qd8+ Kh7 58. Qd3+ Be4 59. Qe2 Qg1+ 60. Kf4 Qg6 61. Qg4 e5+ 62. Kg3 Qxb6 63. Qxe4+ Qg6+ 64. Qxg6+ Kxg6 65. h4 Kf5 66. Kf3 e4+ 67. Kg3 h5 0-1

[Event "Asian Zonal 3.3 2019"]
[Site "Ulaanbaatar"]
[Date "2019.04.11"]
[Round "5.23"]
[White "Erkhes, Bayartnar"]
[Black "Gerelt-Od, Boldbaatar"]
[Result "1/2-1/2"]
[ECO "A00"]
[WhiteElo "1778"]
[BlackElo "1484"]
[Annotator "NA RC"]
[PlyCount "146"]
[EventDate "2019.04.07"]
[EventType "swiss"]
[EventRounds "9"]
[EventCountry "MGL"]
[SourceTitle "playchess.com"]
[Source "ChessBase"]
[SourceQuality "1"]
[TimeControl "40/5400+30:1800+30"]

1. e4 c5 2. Nf3 Nc6 3. Bb5 g6 4. O-O Bg7 5. Re1 e5 6. d3 Qe7 7. Nc3 a6 8. Bxc6 dxc6 9. Be3 Nf6 10. a4 Nd7 11. a5 O-O 12. Nd2 b5 13. axb6 Nxb6 14. Ra5 Nd7 15. Nb3 Rb8 16. Qa1 f5 17. Bxc5 Nxc5 18. Nxc5 f4 19. f3 g5 20. Nb3 g4 21. Qd1 g3 22. h3 Rf6 23. Ne2 Rh6 24. Nec1 Qh4 25. Qe2 Qg5 26. Qf1 Bf6 27. d4 Rh4 28. dxe5 Bd8 29. Qc4+ Kh8 30. Qf7 Be7 31. e6 Qf6 32. Qxf6+ Bxf6 33. Rf5 Kg7 34. e5 Bd8 35. Nd3 Bxe6 36. Rxf4 Bxb3 37. Rxh4 Bxh4 38. cxb3 Rxb3 39. Rd1 Bd8 40. Kf1 Bb6 41. Ke2 Bd4 42. f4 c5 43. Rc1 h5 44. Rc2 h4 45. Rc4 Kg6 46. Kd2 a5 47. Kc2 Rb5 48. b3 Kf5 49. Ra4 Ke6 50. Ne1 Kf5 51. Nd3 Ke4 52. Nc1 Kf5 53. Ne2 Be3 54. Nc3 Rb7 55. Rxa5 Rd7 56. Nb1 Kxf4 57. Ra4+ Bd4 58. b4 cxb4 59. Rxb4 Kxe5 60. Nd2 Rf7 61. Rb5+ Kf4 62. Kd3 Bf6 63. Rb4+ Kg5 64. Ne4+ Kh5 65. Rb5+ Kg6 66. Rb6 Kg7 67. Nxf6 Rxf6 68. Rxf6 Kxf6 69. Ke4 Ke6 70. Kf4 Kf6 71. Kg4 Ke5 72. Kxh4 Kf4 73. Kh5 Ke3 1/2-1/2

[Event "Asian Zonal 3.3 2019"]
[Site "Ulaanbaatar"]
[Date "2019.04.12"]
[Round "6.8"]
[White "Munkhgal, Gombosuren"]
[Black "Tran, Minh Thang"]
[Result "1-0"]
[ECO "A00"]
[WhiteElo "2455"]
[BlackElo "2349"]
[Annotator "RC"]
[PlyCount "49"]
[EventDate "2019.04.07"]
[EventType "swiss"]
[EventRounds "9"]
[EventCountry "MGL"]
[SourceTitle "playchess.com"]
[Source "ChessBase"]
[SourceQuality "1"]
[TimeControl "40/5400+30:1800+30"]

1. d4 Nf6 2. Nf3 e6 3. Bf4 b6 4. e3 Bb7 5. h3 Bd6 6. Bxd6 cxd6 7. c4 O-O 8. Nc3 d5 9. cxd5 Nxd5 10. Nxd5 Bxd5 11. Bd3 f5 12. Qe2 Nc6 13. Bc4 Bxf3 14. Qxf3 d5 15. Bb5 Nb4 16. O-O a6 17. Be2 Qd6 18. Rfc1 Rfc8 19. Rxc8+ Rxc8 20. a3 Nc2 21. Bxa6 Ra8 22. Rc1 Nxa3 23. Bf1 b5 24. bxa3 Qxa3 25. Rc7 1-0

[Event "Asian Zonal 3.3 2019"]
[Site "Ulaanbaatar"]
[Date "2019.04.12"]
[Round "6.19"]
[White "Amgalanbaatar, Ravdanlkhumbuu"]
[Black "Amilal, Munkhdalai"]
[Result "0-1"]
[ECO "A00"]
[WhiteElo "2081"]
[BlackElo "2042"]
[Annotator "NA RC"]
[PlyCount "64"]
[EventDate "2019.04.07"]
[EventType "swiss"]
[EventRounds "9"]
[EventCountry "MGL"]
[SourceTitle "playchess.com"]
[Source "ChessBase"]
[SourceQuality "1"]
[TimeControl "40/5400+30:1800+30"]

1. d3 d5 2. e4 dxe4 3. dxe4 Qxd1+ 4. Kxd1 e5 5. Be3 Nf6 6. f3 Nbd7 7. Bc4 Bc5 8. Ke2 Bxe3 9. Kxe3 Ke7 10. Nc3 c6 11. a4 a5 12. Nge2 Nc5 13. g4 Be6 14. Bxe6 Nxe6 15. h4 g6 16. g5 Nh5 17. Rhd1 h6 18. Rg1 hxg5 19. hxg5 Nhf4 20. Nxf4 exf4+ 21. Kf2 Rh2+ 22. Rg2 Rah8 23. Rag1 Nxg5 24. Rxh2 Rxh2+ 25. Rg2 Rxg2+ 26. Kxg2 Kd6 27. Ne2 Ke5 28. c3 Ne6 29. Nc1 Nc5 30. Kf2 Nxa4 31. Nd3+ Kd6 32. b3 Nxc3 0-1

[Event "Asian Zonal 3.3 2019"]
[Site "Ulaanbaatar"]
[Date "2019.04.12"]
[Round "6.21"]
[White "Gerelt-Od, Boldbaatar"]
[Black "Chuluun, Gonchigdorj"]
[Result "1/2-1/2"]
[ECO "A00"]
[WhiteElo "1484"]
[BlackElo "1982"]
[Annotator "NA RC"]
[PlyCount "73"]
[EventDate "2019.04.07"]
[EventType "swiss"]
[EventRounds "9"]
[EventCountry "MGL"]
[SourceTitle "playchess.com"]
[Source "ChessBase"]
[SourceQuality "1"]
[TimeControl "40/5400+30:1800+30"]

1. e4 Nf6 2. e5 Nd5 3. d4 Nb6 4. c4 d5 5. c5 N6d7 6. Nc3 b6 7. b4 a5 8. Qa4 Bb7 9. Nf3 axb4 10. Qxb4 e6 11. Bd3 Be7 12. O-O O-O 13. Qb1 h6 14. a4 Ba6 15. Bxa6 Rxa6 16. cxb6 Nxb6 17. Ba3 Nc4 18. Bxe7 Qxe7 19. Qd3 c5 20. Rfb1 cxd4 21. Qxd4 Nc6 22. Qd3 Rfa8 23. Re1 Qc5 24. Rac1 Ra5 25. Qc2 Qa3 26. h3 Qb2 27. Qxb2 Nxb2 28. Nxd5 Nd3 29. Nb6 Nxe1 30. Nxe1 Nd4 31. Rc4 Rb8 32. Nd7 Rb1 33. Rc8+ Kh7 34. Nf8+ Kg8 35. Nd7+ Kh7 36. Nf8+ Kg8 37. Nd7+ 1/2-1/2

[Event "Asian Zonal 3.3 2019"]
[Site "Ulaanbaatar"]
[Date "2019.04.12"]
[Round "6.22"]
[White "Bulgankhan, Ganzorig"]
[Black "Danzanjunai, Ganbat"]
[Result "1-0"]
[ECO "A00"]
[WhiteElo "1936"]
[BlackElo "1608"]
[Annotator "NA RC"]
[PlyCount "73"]
[EventDate "2019.04.07"]
[EventType "swiss"]
[EventRounds "9"]
[EventCountry "MGL"]
[SourceTitle "playchess.com"]
[Source "ChessBase"]
[SourceQuality "1"]
[TimeControl "40/5400+30:1800+30"]

1. d4 Nf6 2. c4 g6 3. Nc3 Bg7 4. e4 d6 5. Nf3 O-O 6. Be2 e5 7. O-O Nc6 8. d5 Ne7 9. a4 Nd7 10. a5 f5 11. b4 Nf6 12. c5 fxe4 13. Ng5 dxc5 14. Bc4 Kh8 15. bxc5 h6 16. d6 hxg5 17. dxe7 Qxe7 18. c6 Qb4 19. Qe2 Bg4 20. Qa2 Qxc3 21. cxb7 Rab8 22. a6 Nd7 23. Bd2 Qd4 24. Be3 Qd6 25. Bxa7 e3 26. Bxb8 exf2+ 27. Kh1 e4 28. a7 Ne5 29. Be2 Bh3 30. Qa3 Qd5 31. Qxh3+ Kg8 32. a8=Q Nc6 33. Qa2 Qxa2 34. Rxa2 Rxb8 35. Bc4+ Kf8 36. Raxf2+ Ke7 37. Qe6+ 1-0

[Event "Asian Zonal 3.3 2019"]
[Site "Ulaanbaatar"]
[Date "2019.04.12"]
[Round "6.23"]
[White "Amgalantengis, Enkh-Amgalan"]
[Black "Erkhembayar, Tserentsoodol"]
[Result "1/2-1/2"]
[ECO "A00"]
[WhiteElo "1832"]
[BlackElo "1757"]
[Annotator "NA RC"]
[PlyCount "112"]
[EventDate "2019.04.07"]
[EventType "swiss"]
[EventRounds "9"]
[EventCountry "MGL"]
[SourceTitle "playchess.com"]
[Source "ChessBase"]
[SourceQuality "1"]
[TimeControl "40/5400+30:1800+30"]

1. d4 d5 2. c4 e6 3. Nc3 Nf6 4. cxd5 exd5 5. Bg5 Be7 6. e3 O-O 7. Bd3 h6 8. Bxf6 Bxf6 9. Nf3 c6 10. O-O Bg4 11. h3 Be6 12. b4 Be7 13. Rb1 a6 14. a4 Nd7 15. b5 axb5 16. axb5 Ra3 17. Ne2 c5 18. dxc5 Nxc5 19. Bc2 Ne4 20. Nfd4 Bc8 21. Bb3 Ra5 22. Qc2 Bf6 23. Ra1 Be6 24. Rxa5 Qxa5 25. Qa2 Qxa2 26. Bxa2 Ra8 27. Bb1 Nd2 28. Rd1 Ra1 29. Bh7+ Kxh7 30. Rxa1 Nc4 31. Ra7 b6 32. Nf4 Bxd4 33. exd4 Nd6 34. Nxe6 fxe6 35. Re7 Nxb5 36. Rxe6 Nxd4 37. Rxb6 Ne2+ 38. Kf1 Nf4 39. h4 Nh5 40. Rd6 Nf6 41. f3 h5 42. Ke2 Kg8 43. Ke3 Kf7 44. Kd4 Ke7 45. Rxd5 Nxd5 46. Kxd5 Kf6 47. Ke4 Ke6 48. Kf4 Kf6 49. g3 g6 50. g4 hxg4 51. Kxg4 Kf7 52. Kg5 Kg7 53. Kf4 Kf6 54. Ke4 Ke6 55. Kf4 Kf6 56. Kg4 Kf7 1/2-1/2

[Event "Asian Zonal 3.3 2019"]
[Site "Ulaanbaatar"]
[Date "2019.04.13"]
[Round "7.2"]
[White "Batchuluun, Tsegmed"]
[Black "Munkhgal, Gombosuren"]
[Result "1-0"]
[ECO "E04"]
[WhiteElo "2547"]
[BlackElo "2455"]
[Annotator "ChessBase"]
[PlyCount "107"]
[EventDate "2019.04.07"]
[EventType "swiss"]
[EventRounds "9"]
[EventCountry "MGL"]
[SourceTitle "playchess.com"]
[Source "ChessBase"]
[SourceQuality "1"]
[TimeControl "40/5400+30:1800+30"]

1. c4 {[%emt 0:00:00]} e6 {[%emt 0:00:00]} 2. Nf3 {[%emt 0:00:40]} Nf6 {[%emt 0:00:00]} 3. g3 {[%emt 0:00:49]} d5 {[%emt 0:00:00]} 4. d4 {[%emt 0:00:14]} dxc4 {[%emt 0:00:29]} 5. Bg2 {[%emt 0:00:06]} Bd7 {[%emt 0:00:20]} 6. Ne5 {[%emt 0:00:06]} Bc6 {[%emt 0:00:04]} 7. Nxc6 {[%emt 0:00:06]} Nxc6 {[%emt 0:00:05]} 8. O-O {[%emt 0:00:10]} Qd7 {[%emt 0:00:05]} 9. e3 {[%emt 0:00:05]} Rd8 {[%emt 0:00:50]} 10. Qe2 {[%emt 0:05:51]} e5 {[%emt 0:00:25]} 11. Qxc4 {[%emt 0:00:05]} exd4 {[%emt 0:00:05]} 12. Qb5 {[%emt 0:00:03]} Rb8 {[%emt 0:00:30]} 13. Rd1 {[%emt 0:00:30]} a6 {[%emt 0:03:07]} 14. Qc4 {[%emt 0:13:19]} Bd6 {[%emt 0:00:23]} 15. exd4 {[%emt 0:07:07]} O-O {[%emt 0:00:23]} 16. Nc3 {[%emt 0:00:05]} h6 {[%emt 0:00:33]} 17. b3 {[%emt 0:13:30]} Ne7 {[%emt 0:13:55]} 18. Bb2 {[%emt 0:00:38]} c6 {[%emt 0:15:36]} 19. d5 {[%emt 0:08:07]} c5 {[%emt 0:00:05]} 20. Ne4 {[%emt 0:06:57]} Nxe4 {[%emt 0:00:10]} 21. Bxe4 {[%emt 0:00:29]} Ng6 {[%emt 0:09:11]} 22. Qc2 {[%emt 0:08:01]} f5 {[%emt 0:15:16]} 23. Bg2 {[%emt 0:00:17]} Ne5 {[%emt 0:00:37]} 24. Re1 {[%emt 0:03:38]} Rbe8 {[%emt 0:00:27]} 25. f4 {[%emt 0:08:29]} Ng4 {[%emt 0:00:14]} 26. Bf3 {[%emt 0:00:16]} Rxe1+ {[%emt 0:11:50]} 27. Rxe1 {[%emt 0:00:06]} Re8 {[%emt 0:00:09]} 28. Re2 {[%emt 0:04:30]} Rxe2 {[%emt 0:10:37]} 29. Qxe2 {[%emt 0:00:09]} Be7 {[%emt 0:00:16]} 30. h3 {[%emt 0:12:57]} Nf6 {[%emt 0:00:24]} 31. Qe6+ {[%emt 0:01:08]} Qxe6 {[%emt 0:03:07]} 32. dxe6 {[%emt 0:00:01]} b5 {[%emt 0:04:28]} 33. Bb7 {[%emt 0:00:40]} a5 {[%emt 0:00:47]} 34. Bc6 {[%emt 0:00:03]} b4 {[%emt 0:09:41]} 35. Be5 {[%emt 0:00:29]} Kf8 {[%emt 0:01:14]} 36. Kf2 {[%emt 0:00:20]} c4 {[%emt 0:00:47]} 37. bxc4 {[%emt 0:00:25]} Bc5+ {[%emt 0:00:01]} 38. Ke2 {[%emt 0:03:40]} Ne4 {[%emt 0:01:37]} 39. g4 {[%emt 0:02:44]} Nc3+ {[%emt 0:00:43]} 40. Bxc3 {[%emt 0:00:00]} bxc3 {[%emt 0:00:00]} 41. gxf5 {[%emt 0:02:02]} Ke7 {[%emt 0:06:05]} 42. Kd3 {[%emt 0:00:14]} Kd6 {[%emt 0:03:16]} 43. Be4 {[%emt 0:03:37]} a4 {[%emt 0:03:47]} 44. Kxc3 {[%emt 0:00:19]} a3 {[%emt 0:00:28]} 45. Kb3 {[%emt 0:00:34]} Kc7 {[%emt 0:00:04]} 46. Kc3 {[%emt 0:03:29]} Kd6 {[%emt 0:02:25]} 47. Bd5 {[%emt 0:01:07]} Kc7 {[%emt 0:00:41]} 48. Kd3 {[%emt 0:05:51]} Kd6 {[%emt 0:03:54]} 49. Ke4 {[%emt 0:05:42]} Bb6 {[%emt 0:01:35]} 50. f6 {[%emt 0:01:59]} gxf6 {[%emt 0:00:04]} 51. Kf5 {[%emt 0:00:02]} Be3 {[%emt 0:00:59]} 52. Kxf6 {[%emt 0:00:58]} Bxf4 {[%emt 0:00:04]} 53. Kf7 {[%emt 0:00:03]} Bg5 {[%emt 0:00:06]} 54. Bf3 {[%emt 0:00:06] Kd5 [%clk 0:00:00]} 1-0

[Event "Asian Zonal 3.3 2019"]
[Site "Ulaanbaatar"]
[Date "2019.04.13"]
[Round "7.7"]
[White "Nguyen, Van Huy"]
[Black "Bilguun, Sumiya"]
[Result "1-0"]
[ECO "E04"]
[WhiteElo "2436"]
[BlackElo "2488"]
[Annotator "ChessBase"]
[PlyCount "147"]
[EventDate "2019.04.07"]
[EventType "swiss"]
[EventRounds "9"]
[EventCountry "MGL"]
[SourceTitle "playchess.com"]
[Source "ChessBase"]
[SourceQuality "1"]
[TimeControl "40/5400+30:1800+30"]

1. d4 {[%emt 0:00:05]} d5 {[%emt 0:00:00]} 2. Nf3 {[%emt 0:00:43]} Nf6 {[%emt 0:00:00]} 3. c4 {[%emt 0:01:00]} e6 {[%emt 0:00:00]} 4. g3 {[%emt 0:00:31]} dxc4 {[%emt 0:00:00]} 5. Bg2 {[%emt 0:00:42]} Bb4+ {[%emt 0:00:02]} 6. Bd2 {[%emt 0:01:49]} a5 {[%emt 0:00:03]} 7. Qc2 {[%emt 0:02:55]} Bxd2+ {[%emt 0:01:12]} 8. Qxd2 {[%emt 0:00:25]} c6 {[%emt 0:00:38]} 9. a4 {[%emt 0:01:50]} Ne4 {[%emt 0:00:11]} 10. Qf4 {[%emt 0:03:25]} Nd6 {[%emt 0:05:22]} 11. O-O {[%emt 0:05:13]} O-O {[%emt 0:02:38]} 12. Na3 {[%emt 0:03:50]} b5 {[%emt 0:14:12]} 13. Rac1 {[%emt 0:08:28]} Ra6 {[%emt 0:05:41]} 14. e4 {[%emt 0:11:17]} Rb6 {[%emt 0:04:20]} 15. Rfd1 {[%emt 0:05:18]} Ba6 {[%emt 0:08:16]} 16. e5 {[%emt 0:08:14]} Nc8 {[%emt 0:00:53]} 17. Qd2 {[%emt 0:02:55]} c3 {[%emt 0:08:54]} 18. bxc3 {[%emt 0:00:45]} bxa4 {[%emt 0:00:48]} 19. Qa2 {[%emt 0:02:34]} Qe7 {[%emt 0:01:25]} 20. Nd2 {[%emt 0:03:06]} Rb7 {[%emt 0:10:13]} 21. Nac4 {[%emt 0:03:12]} Bb5 {[%emt 0:04:07]} 22. Ne3 {[%emt 0:02:14]} Na6 {[%emt 0:07:44]} 23. Ra1 {[%emt 0:05:03]} Nb6 {[%emt 0:01:20]} 24. Qa3 {[%emt 0:01:56]} Qxa3 {[%emt 0:14:12]} 25. Rxa3 {[%emt 0:00:17]} Nb8 {[%emt 0:00:00]} 26. Ne4 {[%emt 0:06:51]} Rc7 {[%emt 0:04:52]} 27. Rc1 {[%emt 0:02:26]} Bd3 {[%emt 0:05:09]} 28. Nc5 {[%emt 0:02:06]} Bg6 {[%emt 0:00:06]} 29. Nxa4 {[%emt 0:01:04]} Nxa4 {[%emt 0:00:09]} 30. Rxa4 {[%emt 0:00:05]} c5 {[%emt 0:00:01]} 31. d5 {[%emt 0:01:27]} exd5 {[%emt 0:01:31]} 32. Bxd5 {[%emt 0:01:04]} Nd7 {[%emt 0:00:57]} 33. e6 {[%emt 0:02:45]} fxe6 {[%emt 0:00:45]} 34. Bxe6+ {[%emt 0:00:03]} Kh8 {[%emt 0:00:06]} 35. Rxa5 {[%emt 0:01:43]} Ne5 {[%emt 0:01:00]} 36. Bd5 {[%emt 0:00:24]} h5 {[%emt 0:00:18]} 37. Rca1 {[%emt 0:00:40]} Kh7 {[%emt 0:00:32]} 38. Ra8 {[%emt 0:00:45]} Rxa8 {[%emt 0:00:35]} 39. Rxa8 {[%emt 0:00:06]} Nd7 {[%emt 0:00:20]} 40. Bg8+ {[%emt 0:00:00]} Kh6 {[%emt 0:00:00]} 41. Nd5 {[%emt 0:09:06]} Rb7 {[%emt 0:08:00]} 42. Ra6 {[%emt 0:00:51]} Nf6 {[%emt 0:00:53]} 43. Nxf6 {[%emt 0:00:56]} gxf6 {[%emt 0:00:01]} 44. Bd5 {[%emt 0:00:16]} Rb1+ {[%emt 0:00:14]} 45. Kg2 {[%emt 0:00:06]} Kg7 {[%emt 0:01:12]} 46. Rc6 {[%emt 0:00:52]} Rb5 {[%emt 0:02:11]} 47. c4 {[%emt 0:00:12]} Ra5 {[%emt 0:00:44]} 48. h4 {[%emt 0:00:20]} Bd3 {[%emt 0:00:35]} 49. Kf3 {[%emt 0:00:19]} Bb1 {[%emt 0:04:03]} 50. Kf4 {[%emt 0:00:06]} Ra2 {[%emt 0:00:55]} 51. f3 {[%emt 0:00:12]} Rd2 {[%emt 0:00:27]} 52. Rxc5 {[%emt 0:00:33]} Rd4+ {[%emt 0:00:06]} 53. Ke3 {[%emt 0:00:09]} Rd3+ {[%emt 0:00:01]} 54. Ke2 {[%emt 0:00:13]} Rc3 {[%emt 0:00:03]} 55. Rc7+ {[%emt 0:01:32]} Kg6 {[%emt 0:00:11]} 56. c5 {[%emt 0:00:23]} Kf5 {[%emt 0:00:07]} 57. c6 {[%emt 0:01:02]} Ke5 {[%emt 0:00:03]} 58. Rd7 {[%emt 0:00:23]} Rc2+ {[%emt 0:09:44]} 59. Kd1 {[%emt 0:01:29]} Rc5 {[%emt 0:00:14]} 60. f4+ {[%emt 0:07:06]} Kf5 {[%emt 0:00:34]} 61. c7 {[%emt 0:01:05]} Be4 {[%emt 0:00:31]} 62. Bb3 {[%emt 0:09:04]} Kg4 {[%emt 0:01:00]} 63. Rg7+ {[%emt 0:00:16]} Kf3 {[%emt 0:00:20]} 64. Kd2 {[%emt 0:00:24]} Bf5 {[%emt 0:04:25]} 65. Bd1+ {[%emt 0:01:57]} Kf2 {[%emt 0:00:03]} 66. Bxh5 {[%emt 0:00:10]} Rc2+ {[%emt 0:01:56]} 67. Kd1 {[%emt 0:00:05]} Rc5 {[%emt 0:00:25]} 68. g4 {[%emt 0:03:12]} Be4 {[%emt 0:00:58]} 69. Bg6 {[%emt 0:00:43]} Bf3+ {[%emt 0:00:35]} 70. Kd2 {[%emt 0:00:06]} Bxg4 {[%emt 0:00:19]} 71. f5 {[%emt 0:00:08]} Bf3 {[%emt 0:01:45]} 72. Re7 {[%emt 0:00:27]} Kg3 {[%emt 0:01:54]} 73. h5 {[%emt 0:00:09]} Kf4 {[%emt 0:00:09]} 74. h6 {[%emt 0:00:13]} 1-0